Cogmind - Beta 17.1 @@@ ROGUE MODE // 2026.09.15 @ 22:23:53 Player: stixxx Result: Destroyed by S-27 Virus with Autogun Performance ------------- Evolutions (6) 3000 Regions Visited (5) 1000 Robots Destroyed (7) 35 Value Destroyed (427) 427 Prototype IDs (15) 300 Alien Tech Used (0) 0 Bonus (1291) 1291 TOTAL SCORE: 6053 Bonus ------- Pacifist 491 Registered with UFD 300 Met Optimus in HQ 500 Cogmind --------- Core Integrity 0/1150 Matter 222/300 Energy 100/100 System Corruption 4% Temperature Cool (0) Movement Core (50) Location -4/Factory Parts ------- > --- POWER (2) -------- (None) > --- PROPULSION (5) --- (None) > --- UTILITY (6) ------ (None) > --- WEAPON (6) ------- (None) > --- INVENTORY (5) ---- Light Treads Heat Sink Peak State ------------ > --- POWER ------------ Light Ion Engine Light Deuterium Engine > --- PROPULSION ------- Overtuned Treads Overtuned Treads Improved Medium Treads Improved Medium Treads Improved Medium Treads > --- UTILITY ---------- Scrap Suit Small Storage Unit Improved Core Shielding A0-MCA's Component Scanner > --- WEAPON ----------- Improved Arc Projector Overtuned Pulse Rifle Heavy Laser Heavy Laser Mass Driver > --- INVENTORY -------- Light Treads Heat Sink Transport Network Coupler [Rating: 71] Favorites ----------- Power Light Ion Engine Engine Light Ion Engine Power Core Neutrino Core Propulsion Light Treads Treads Light Treads Leg Aluminum Leg Utility Small Storage Unit Device Scrap Suit Storage Small Storage Unit Processor A0-MCA's Component Scanner Protection Improved Core Shielding Weapon Assault Rifle Energy Gun Heavy Laser Ballistic Gun Assault Rifle Ballistic Cannon Mass Driver Special Weapon Improved Remote Datajack Build | -11 -10 -10 -7 -5 -4 ------- Run | Yrd Mat Sub Scr Fac Fac Slots Evolved 12 | . . . . 10 2 Power 1 | . . . . 1 . Propulsion 3 | . . . . 3 . Utility 4 | . . . . 3 1 Weapon 4 | . . . . 3 1 Parts Attached 24 | 7 1 . 5 8 3 Power 4 | 1 . . 1 1 1 Engine 3 | 1 . . 1 1 . Core 1 | . . . . . 1 Reactor . | . . . . . . Propulsion 9 | 3 . . 2 4 . Treads 8 | 2 . . 2 4 . Leg 1 | 1 . . . . . Wheel . | . . . . . . Hover . | . . . . . . Flight . | . . . . . . Utility 6 | 1 1 . 1 2 1 Device 2 | . 1 . . 1 . Storage 1 | 1 . . . . . Processor 2 | . . . . 1 1 Hackware . | . . . . . . Protection 1 | . . . 1 . . Artifact . | . . . . . . Weapon 5 | 2 . . 1 1 1 Energy Gun 3 | 1 . . 1 1 . Energy Cannon . | . . . . . . Ballistic Gun 1 | 1 . . . . . Ballistic Cannon . | . . . . . . Launcher . | . . . . . . Special Weapon 1 | . . . . . 1 Impact Weapon . | . . . . . . Slashing Weapon . | . . . . . . Piercing Weapon . | . . . . . . Special Melee Weapon . | . . . . . . Unidentified Prototypes . | . . . . . . Parts Lost 16 | . . . . 5 11 Power 2 | . . . . 1 1 Propulsion 5 | . . . . 1 4 Utility 2 | . . . . . 2 Weapon 7 | . . . . 3 4 Highest Loss Streak 6 | . . . . 4 6 To Critical Strikes . | . . . . . . Average Backups 4 | 2 3 3 7 2 2 Power . | . 1 1 1 . . Propulsion 1 | 1 2 2 2 . 1 Utility 1 | . . . 1 2 1 Weapon . | . . . 1 . . Tool/Special . | . . . . . . Unused Backups 1 | . . . 1 . . Power . | . . . . . . Propulsion 1 | . . . 1 . . Utility . | . . . . . . Weapon . | . . . . . . Tool/Special . | . . . . . . Average Slot Usage (%) 75 | . 90 100 75 78 59 Engine 10 | . 14 14 14 9 3 Treads 23 | . 28 28 27 21 15 Device 4 | . 4 14 2 5 4 Storage 9 | . 14 14 14 5 4 Processor 3 | . . . . 4 9 Protection 6 | . . . 11 5 4 Energy Gun 7 | . 14 14 2 14 8 Ballistic Gun 3 | . 14 14 2 3 . Ballistic Cannon 1 | . . . . 3 4 Peak Build Rating 71 | 6 7 7 20 71 62 Average Rating 28 | 4 6 7 10 53 53 On Entrance 16 | . 6 7 7 20 61 Avg Prop Armor Cover (%) 7 | . . . . . 7 Naked Turns 48 | . . . . . 48 Heaviest Build 44 | 12 13 13 17 44 38 Greatest Support 126 | 40 40 40 40 126 108 Greatest Overweight (x) 9 | 2 . . . . 9 Average Overweight (x) . | . . . . . . Largest Inventory Capacity 8 | 8 8 8 8 8 8 Average Capacity 7 | 7 8 8 8 8 7 Most Carried 8 | 3 3 3 8 6 3 Average Carried 4 | 2 3 3 7 2 2 Final Capacity 8 | 8 8 8 8 8 5 Final Carried 8 | 3 3 3 8 3 2 Scrap Suit Usage (%) 12 | . . . . 79 . Parts Cannibalized 2 | . . . . 2 . Class Distribution -------------------- 62% | Mutant 21% | Tank 9% | Scavenger-Scrapper 6% | Scrapper Dominant Class ---------------- Mutant | -10/Materials Mutant | -10/Subcaves Mutant | -7/Scraptown Scavenger-Scrapper | -5/Factory Tank | -4/Factory Resources | -11 -10 -10 -7 -5 -4 ----------- Run | Yrd Mat Sub Scr Fac Fac Matter Collected 529 | 210 . 44 76 91 108 Remotely . | . . . . . . Salvage Created 359 | . . . . 226 133 Parts 14 | . . . . 9 5 Haulers Intercepted . | . . . . . . Recyclers Shooed . | . . . . . . Parts Field Recycled . | . . . . . . Retrieved Matter . | . . . . . . Parts Self-Destructed 5 | . . 5 . . . Prevented . | . . . . . . Parts Restored . | . . . . . . Kills | -11 -10 -10 -7 -5 -4 ------- Run | Yrd Mat Sub Scr Fac Fac Combat Hostiles Destroyed 7 | . . . . 4 3 Guns 4 | . . . . 4 . Cannons 3 | . . . . . 3 Classes Destroyed 2 | . . . . 1 1 Grunt 5 | . . . . 4 1 Programmer 2 | . . . . . 2 Best Kill Streak 2 | . . . . 2 1 Combat Bots Only 2 | . . . . 2 1 Max Kills in Single Turn 1 | . . . . 1 1 Gunslinging . | . . . . . . Exploded . | . . . . . . Melee . | . . . . . . Uniques/NPCs Destroyed . | . . . . . . Combat | -11 -10 -10 -7 -5 -4 -------- Run | Yrd Mat Sub Scr Fac Fac Hostile Shots Fired 312 | . . 13 4 70 225 Missed 108 | . . 6 . 17 85 Hits 204 | . . 7 4 53 140 Melee 2 | . . . 2 . . Projectile 202 | . . 7 2 53 140 Critical Strikes 11 | . . . 1 5 5 Actively Blocked 4 | . . . . 1 3 Damage Taken 3632 | . . 239 125 1180 2088 Core 1344 | . . 22 30 128 1164 Absorbed by Shields 46 | . . . . . 46 Redirected to Shielding 78 | . . . 11 11 56 Regen/Repaired (Parts) 20 | . . . . 20 . Core Remaining (%) 88 | 100 . . 79 87 . Volleys Fired 40 | . . . . 17 23 Largest 4 | . . . . 4 4 Hottest 261 | . . . . 216 261 Shots Fired 81 | . . . . 46 35 Gun 53 | . . . . 41 12 Cannon 27 | . . . . 5 22 Launcher . | . . . . . . Special 1 | . . . . . 1 Kinetic 43 | . . . . 21 22 Thermal 27 | . . . . 23 4 Explosive . | . . . . . . Electromagnetic 10 | . . . . 2 8 Robot Hit Streak 7 | . . . . 7 6 Robot Miss Streak 6 | . . . . 2 6 Penetration Max . | . . . . . . Secondary Targets . | . . . . . . Shots Hit Robots 46 | . . . . 26 20 Core Hits 16 | . . . . 11 5 Critical Kills 1 | . . . . 1 . Critical Parts Destroyed . | . . . . . . Critical Strikes 2 | . . . . 2 . Burn 1 | . . . . 1 . Destroy 1 | . . . . 1 . Melee Attacks . | . . . . . . Impact . | . . . . . . Slashing . | . . . . . . Piercing . | . . . . . . Sneak Attacks . | . . . . . . Combat Hostiles . | . . . . . . Follow-up Attacks . | . . . . . . Damage Inflicted 955 | . . . . 479 476 Guns 518 | . . . . 409 109 Cannons 436 | . . . . 70 366 Explosions . | . . . . . . Melee . | . . . . . . Ramming 1 | . . . . . 1 Kinetic 535 | . . . . 169 366 Thermal 309 | . . . . 272 37 Explosive . | . . . . . . Electromagnetic 110 | . . . . 38 72 Impact . | . . . . . . Slashing . | . . . . . . Piercing . | . . . . . . Highest Corruption 4 | . . . . . 4 Average Corruption 3 | . . . . . 3 Corruption Purged . | . . . . . . Corruption Blocked . | . . . . . . Effects 5 | . . . . . 5 Heat Flow Errors 1 | . . . . . 1 Energy Discharges 1 | . . . . . 1 Data Loss (minor) 1 | . . . . . 1 Data Loss (major) 1 | . . . . . 1 Alerts 1 | . . . . . 1 Overload Shots . | . . . . . . Overflow Damage . | . . . . . . Projectiles . | . . . . . . Explosions . | . . . . . . Melee . | . . . . . . Knockbacks 3 | . . . . 1 2 Impact . | . . . . . . Kinetic 3 | . . . . 1 2 Secondary . | . . . . . . Self-Inflicted Damage . | . . . . . . Shots . | . . . . . . Rammed 2 | . . . . . 2 Targets Rammed 2 | . . . . . 2 Kicked . | . . . . . . Crushed . | . . . . . . Highest Temperature 632 | . . . . 632 211 Average Temperature 181 | . . . . 202 121 Received Heat Transfer 706 | . . 42 . 549 115 Effects 18 | . . . . 18 . Shutdowns 3 | . . . . 3 . Energy Bleed 2 | . . . . 2 . Interference 6 | . . . . 6 . Damage (minor) 1 | . . . . 1 . Damage (major) 5 | . . . . 5 . Damage (core) 1 | . . . . 1 . Siege Activations . | . . . . . . Martial Activations . | . . . . . . Shielding Activations . | . . . . . . Robots Disrupted 1 | . . . . . 1 Combat Hostiles 1 | . . . . . 1 Robots Corrupted . | . . . . . . Combat Hostiles . | . . . . . . Parts Fried . | . . . . . . Impact Corruptions . | . . . . . . Robots Melted . | . . . . . . Combat Hostiles . | . . . . . . Parts Melted . | . . . . . . Heat Transferred 748 | . . . . 661 87 Parts Sabotaged . | . . . . . . Parts Stolen . | . . . . . . Parts Stripped . | . . . . . . Power Chain Reactions . | . . . . . . Alert | -11 -10 -10 -7 -5 -4 ------- Run | Yrd Mat Sub Scr Fac Fac Maximum Alert Level . | . . . . . . Low Security (%) 100 | 100 100 . . 100 100 Level 1 . | . . . . . . Level 2 . | . . . . . . Level 3 . | . . . . . . Level 4 . | . . . . . . Level 5 . | . . . . . . High Security . | . . . . . . Max Security . | . . . . . . Peak Influence 65 | . 5 . . 65 56 Initial 27 | . . . . . 27 Average 9 | . . . . 12 9 Influence Increases 358 | . 5 . . 199 154 Destroy 0b10 Robot/C 140 | . . . . 80 60 Destroy Leader 20 | . . . . 10 10 Successful Hack 5 | . 5 . . . . Disable Machine 30 | . . . . 15 15 Destroy Structure 28 | . . . . 4 24 Lose Combat Pursuer 135 | . . . . 90 45 Influence Decreases 358 | . 5 . . 142 211 Entered New Map 30 | . . . . . 30 Time Decay 224 | . 5 . . 98 121 Lost Part 84 | . . . . 44 40 Purge Threat 20 | . . . . . 20 Squads Dispatched 7 | . . . . 3 4 Investigation 5 | . . . . 3 2 Extermination 2 | . . . . . 2 Reinforcement . | . . . . . . Assault . | . . . . . . Garrison . | . . . . . . Intercept . | . . . . . . Searches Triggered . | . . . . . . Construction Impeded . | . . . . . . Haulers Reinforced . | . . . . . . Active Scanning Responses . | . . . . . . Cargo Convoy Interrupts . | . . . . . . Stealth | -11 -10 -10 -7 -5 -4 --------- Run | Yrd Mat Sub Scr Fac Fac Distress Signals 2 | . . . . . 2 Communications Jammed . | . . . . . . Distress Signals . | . . . . . . Times Spotted 45 | . . 3 6 15 21 Peak Tracking Total 10 | . . 2 5 6 10 Tactical Retreats 4 | . . . . 2 2 Traps | -11 -10 -10 -7 -5 -4 ------- Run | Yrd Mat Sub Scr Fac Fac Traps Triggered 3 | . . 2 . . 1 Indirectly . | . . . . . . Trap Hack Attempts . | . . . . . . Triggered . | . . . . . . Disarmed . | . . . . . . Reprogrammed . | . . . . . . Reused . | . . . . . . Traps Extracted . | . . . . . . Installed . | . . . . . . Triggered . | . . . . . . Machines | -11 -10 -10 -7 -5 -4 ---------- Run | Yrd Mat Sub Scr Fac Fac Machines Disabled 2 | . . . . 1 1 Max in Single Turn 1 | . . . . 1 1 Machines Repaired . | . . . . . . Machines Dismantled . | . . . . . . Machines Sabotaged . | . . . . . . Overloaded Fab Kills . | . . . . . . Hacking | -11 -10 -10 -7 -5 -4 --------- Run | Yrd Mat Sub Scr Fac Fac Machines Accessed 11 | . 1 . 4 3 3 Terminals 5 | . 1 . . 1 3 Fabricators . | . . . . . . Repair Stations . | . . . . . . Recycling Units 2 | . . . . 2 . Scanalyzers . | . . . . . . Garrison Access . | . . . . . . Total Hacks 42 | . 3 . 26 6 7 Successful 31 | . 1 . 26 3 1 Failed 11 | . 2 . . 3 6 Catastrophic 2 | . . . . 1 1 Database Lockouts . | . . . . . . Manual 13 | . 3 . . 5 5 Terminals 13 | . 3 . . 3 7 Fabricators . | . . . . . . Repair Stations . | . . . . . . Recycling Units 3 | . . . . 3 . Scanalyzers . | . . . . . . Garrison Access . | . . . . . . Terminal Hacks 28 | . . . 26 1 1 Record 26 | . . . 25 1 . Unreport Threat 1 | . . . . . 1 Proto ID Catalog 1 | . . . 1 . . Fabricator Hacks . | . . . . . . Repair Station Hacks . | . . . . . . Recycling Unit Hacks . | . . . . . . Scanalyzer . | . . . . . . Garrison Access Hacks . | . . . . . . Unauthorized Hacks 3 | . 1 . . 2 . Terminals 1 | . 1 . . . . Botnet 1 | . 1 . . . . Fabricators . | . . . . . . Repair Stations . | . . . . . . Recycling Units 2 | . . . . 2 . Fedlink 2 | . . . . 2 . Scanalyzers . | . . . . . . Garrison Access . | . . . . . . Data Cores Recovered . | . . . . . . Used . | . . . . . . Hacking Detections 6 | . 1 . . 2 3 Full Trace Events 3 | . . . . 1 2 Feedback Events . | . . . . . . Feedback Blocked . | . . . . . . Robot Schematics Acquired . | . . . . . . Robots Built . | . . . . . . Authchips . | . . . . . . Time . | . . . . . . Total Robot Build Rating . | . . . . . . Part Schematics Acquired . | . . . . . . Parts Built . | . . . . . . Authchips . | . . . . . . Time . | . . . . . . Total Part Build Rating . | . . . . . . Part Studies Acquired . | . . . . . . Parts Repaired . | . . . . . . Time . | . . . . . . Parts Recycled . | . . . . . . Recycled Matter . | . . . . . . Retrieved Matter . | . . . . . . Retrieved Components . | . . . . . . Parts Scanalyzed . | . . . . . . Part Schematics Acquired . | . . . . . . Parts Damaged . | . . . . . . Bothacking | -11 -10 -10 -7 -5 -4 ------------ Run | Yrd Mat Sub Scr Fac Fac Used RIF Installer . | . . . . . . Robots Hacked . | . . . . . . Non-combat . | . . . . . . Combat . | . . . . . . Robot Hacks Applied . | . . . . . . Relay Couplers Released . | . . . . . . Fabnet Peak Effective % . | . . . . . . Robots Rewired . | . . . . . . Allies Hacked . | . . . . . . Hacks Repelled . | . . . . . . Allies | -11 -10 -10 -7 -5 -4 -------- Run | Yrd Mat Sub Scr Fac Fac Total Allies . | . . . . . . Largest Group . | . . . . . . Highest-Rated Group . | . . . . . . Highest-Rated Ally . | . . . . . . Initial UFD Resources 54 | . . . . 38 54 Total Orders . | . . . . . . Ally Attacks . | . . . . . . Total Damage . | . . . . . . Kills . | . . . . . . Allies Corrupted . | . . . . . . Allies Melted 6 | . . . 6 . . Intel | -11 -10 -10 -7 -5 -4 ------- Run | Yrd Mat Sub Scr Fac Fac Active Infowar (turns) 647 | . . . . . 647 T.N.C. 647 | . . . . . 647 Robot Analysis Total . | . . . . . . Derelict Logs Recovered . | . . . . . . Drone Launches . | . . . . . . Drone Recoveries . | . . . . . . Exploration | -11 -10 -10 -7 -5 -4 ------------- Run | Yrd Mat Sub Scr Fac Fac Turns Passed 2575 | 81 81 291 1009 418 695 Spaces Moved 1504 | 47 46 162 618 244 387 Core 87 | 6 . . . . 81 Treads 1417 | 41 46 162 618 244 306 Legs . | . . . . . . Wheels . | . . . . . . Hover . | . . . . . . Flight . | . . . . . . Fastest Speed 50 | 50 160 160 140 146 50 Average Speed 152 | 148 160 160 159 149 141 Slowest Speed 500 | 160 160 160 160 155 500 Overloaded Moves . | . . . . . . Propulsion Burnouts . | . . . . . . Robots Hopped . | . . . . . . Potential Cave-ins . | . . . . . . Cave-ins Triggered . | . . . . . . Exploration Rate (%) 15 | 3 13 18 41 6 13 Regions Visited 5 Branch Regions 2 Pre-discovered Areas 1 | . . . . 1 . Known Exits Taken 1 | . . . 1 . . Unknown Exits Taken 4 | 1 1 1 . 1 . Scrap Searched . | . . . . . . Spaces Dug . | . . . . . . Terrain Destroyed 14 | . . . . 2 12 Melee . | . . . . . . Projectile 14 | . . . . 2 12 AOE . | . . . . . . Terrain Rammed . | . . . . . . Walls Destroyed . | . . . . . . Machines Disabled . | . . . . . . Actions | -11 -10 -10 -7 -5 -4 --------- Run | Yrd Mat Sub Scr Fac Fac Total 1718 | 56 53 194 642 269 504 Wait 124 | . 7 33 3 . 81 Move 1499 | 46 45 161 617 243 387 Hop . | . . . . . . Pick Up 10 | 2 . . 6 1 1 Fast Attach 13 | 7 1 . 3 1 1 Attach 10 | . . . 2 6 2 Detach 5 | 1 . . 4 . . Swap 2 | . . . 1 1 . Drop 6 | . . . 6 . . Fire 40 | . . . . 17 23 Melee . | . . . . . . Ram 2 | . . . . . 2 Kick . | . . . . . . Crush . | . . . . . . Escape Stasis 7 | . . . . . 7 Rewire . | . . . . . . Trap . | . . . . . . Miscellaneous . | . . . . . . Route ------- -11/Scrapyard -10/Materials -10/Subcaves -7/Scraptown (discovered 2 exits: *Fac x2) -5/Factory -4/Factory History --------- Turn | Location | Event 5 | -11/Scrapyard | Discovered new exit (range 16) 82 | -11/Scrapyard | Entered Materials 83 | -10/Materials | Met a group of wandering Federalists 148 | -10/Materials | Discovered new exit (range 9) 163 | -10/Materials | Entered Subcaves 163 | -10/Subcaves | Accompanied by 2 allies 164 | -10/Subcaves | Continued accompanying wandering Federalists (5) 311 | -10/Subcaves | Build established: Mutant 454 | -10/Subcaves | Entered Scraptown 738 | -7/Scraptown | Visited UFD Registry 738 | -7/Scraptown | Registered with UFD as "Chainwalker" 781 | -7/Scraptown | Visited Curators Association 868 | -7/Scraptown | Visited DA-N13 Charitable Foundation 925 | -7/Scraptown | Visited Science Guys 1081 | -7/Scraptown | Met Optimus 1081 | -7/Scraptown | Accepted into 0bPrime 1229 | -7/Scraptown | Visited A0-MCA Data Center 1238 | -7/Scraptown | Given a B- rating by A0-MCA 1242 | -7/Scraptown | Found A0-MCA's Component Scanner 1263 | -7/Scraptown | Visited Cartography Club 1293 | -7/Scraptown | Civil war broke out across Scraptown 1345 | -7/Scraptown | Visited Infowarlord's Domain 1367 | -7/Scraptown | Lost 9 allies 1367 | -7/Scraptown | Identified exit to Factory 1420 | -7/Scraptown | Found Scrap Suit 1463 | -7/Scraptown | Entered Factory 1463 | -5/Factory | Evolved 10 slots: Power x1, Propulsion x3, Utility x3, Weapon x3 1489 | -5/Factory | Discovered new exit (range 4) 1750 | -5/Factory | Loaded intel: 8 recycling unit locations 1779 | -5/Factory | Learned location of Protoforge (-2) 1854 | -5/Factory | Lost 4 parts (1p1n2w) 1881 | -5/Factory | Entered another Factory area 1881 | -4/Factory | Evolved 2 slots: Utility x1, Weapon x1 2130 | -4/Factory | Build established: Tank 2417 | -4/Factory | Lost 3 parts (1p2w) 2528 | -4/Factory | Released all parts (5) 2556 | -4/Factory | Core integrity fell below 50% 2557 | -4/Factory | Lost 6 parts (3n2u1w) 2560 | -4/Factory | Core integrity fell below 20% 2576 | -4/Factory | Destroyed by S-27 Virus with Autogun Last Messages --------------- Slug penetrates U-05 Engineer. Slug penetrates Wall. Penetrated by Slug. System corrupted: IFF burst signal emitted. R-10 Processor collects Sml. Storage Unit. Slug penetrates Wall. Penetrated by Slug. Slug penetrates Wall. Slammed into S-27 Virus. Slug penetrates Wall. Slammed into S-27 Virus. Penetrated by Slug. Slug penetrates Wall. Penetrated by Slug. S-27 Virus destroyed. U-05 Engineer destroyed. Penetrated by Slug. Slug penetrates Wall. ALERT: Potential suspicious activity detected, Programmers report to Factory Zone 3H. Map ----- +----------------------------------------------------+ | ?????????????????????# """"""" + | | ?????????????????????# ###### | | ?????????????????????# #????# """ | | ?????????????????????# #????# ######## | | ?????????????????????#####+########## #??????? | | ??????????????????????# #??????? | | ????????????????? ???## #??????? | | ?????????????????""???# #????### | | ????????????????? ??# #????# | | ?????????????????""" ?# % #????# | | ??????????????????? ## ###############????# | | ????????????#######+### % #! #?????# | | ??????????? u % # #?????# | | ??????????? + #?????# | | ??????? ? h# #?????# | | ???????? h# """ """ ####### | | ???????? wk !# """ """ + | | ????????# ######### # """ """ ######## | | ????????# #???????# # #??????## | | ????????# #???????#% # """ """ #???????? | | ????????/ #???????# # """ """ #???????? | | ????????# ######### # """ """ #???????? | | ????????# # # # #???????? | | ????????# # """ # #################????? | | ????????# #! "T" # # """"""""""" #???? | | ######### # # @ # """"T"""" #???? | | # # # #???? | | + ! """ # + """""" """""" #???? | | # """ + # """""" """""" #???? | | # """ # # """""" """""" ????? | | # # # """""""""""""?????? | | ######### # # # ! ??????? | | ????????#* # ! # # ???????? | | ######### ######### ##############???????? | | # # #???????# #????????????????????? | | # """ # | #??????##s #????????????????????? | | # """ # !%=######### #????????????????????? | | # """ # = ss #????????????????????? | | # # = ###########+#######????????????????? | | # """ #^%^ #????# #????????????????? | | # """ # [ #????# #????????????????? | | # """ =% #????# """" """" #????????????????? | | # # #????# """" """" #????????????????? | | # # #????# """" """" #????????????????? | | # = # #????# """" """" #????????????????? | | ######### #????#?"""" """"? #????????????????? | | ????????# ##??????""" """????????????????????? | | ????????# T#???????"" ""?????????????????????? | | ????????# #???????? ??????????????????????? | | ????????# ##???????? ??????????????????????? | +----------------------------------------------------+ Best States ------------- Heat Dissipation 43 Energy Generation 19 Energy Capacity 315 Matter Stores 300 Matter Capacity 300 Sight Range 16 Terrain Scan Density 10 Core Shielding 30 Evasion (%) 50 Recoil Reduction 5 Item Schematics ----------------- None Robot Schematics ------------------ None Fabricated ------------ Nothing Repaired ---------- Nothing Studied --------- None Alien Tech Used ----------------- None Achievements -------------- Civilization 2243 Link The Feds That Tickles Uncivil War Challenges ------------ None Game ------ Seed RecyclingPhysicsMonowheel Manual? 0 Play Time 00:44:26 Cumulative 12.6 hours Start 2026.09.15 @ 21:29:47 End 2026.09.15 @ 22:23:53 Sessions 1 Manual Loads 0 Difficulty Rogue Special Mode None Game No. 21 Rogue 21 Adventurer 0 Explorer 0 Win Type - Total 0 Types 0/0/0/0/0/0/0/0/0/0 Lore% 11 Gallery% 12 Achievement% 14 Wizard Run 0 Options --------- Layout 1 ASCII 0 Keyboard 1 Movement Numpad Keybinds 0 Fullscreen 1 Font 24/Smallcaps Map View 50x35 Zoom Use 0% Tactical HUD 0 Map Filters NONE Filters NONE Steam 1 RUN: 41de6993-3889-402e-8740-1def9a22ec6d